[Event "GEO-ch 1st League 2021"]
[Site "Tbilisi"]
[Date "2021.04.02"]
[Round "5.8"]
[White "Lomsadze, Davit"]
[Black "Mindiashvili, Tengiz"]
[Result "0-1"]
[ECO "A37"]
[WhiteElo "2303"]
[BlackElo "1923"]
[Annotator "ChessBase"]
[PlyCount "108"]
[EventDate "2021.03.29"]
[EventType "swiss"]
[EventCountry "GEO"]
[SourceTitle "playchess.com"]
[Source "ChessBase"]
[SourceQuality "1"]
[TimeControl "5400+30"]

1. Nf3 {[%emt 0:10:37]} c5 {[%emt 0:00:00]} 2. g3 {[%emt 0:00:03]} Nc6 {[%emt 0:00:00]} 3. Bg2 {[%emt 0:00:03]} g6 {[%emt 0:00:00]} 4. O-O {[%emt 0:00:05]} Bg7 {[%emt 0:00:00]} 5. c4 {[%emt 0:00:02]} d6 {[%emt 0:00:05]} 6. Nc3 {[%emt 0:00:03]} Bg4 {[%emt 0:00:08]} 7. h3 {[%emt 0:00:16]} Be6 {[%emt 0:00:02]} 8. d3 {[%emt 0:00:10]} Qc8 {[%emt 0:00:04]} 9. Kh2 {[%emt 0:00:08]} h5 {[%emt 0:00:05]} 10. e4 {[%emt 0:02:01]} Nf6 {[%emt 0:00:43]} 11. Ng5 {[%emt 0:00:52]} Bd7 {[%emt 0:01:33]} 12. f4 {[%emt 0:02:15]} Ng4+ {[%emt 0:01:30]} 13. Kh1 {[%emt 0:01:35]} h4 {[%emt 0:12:33]} 14. f5 {[%emt 0:02:43]} Nge5 {[%emt 0:04:09]} 15. g4 {[%emt 0:02:58]} gxf5 {[%emt 0:05:35]} 16. exf5 {[%emt 0:00:28]} Nb4 {[%emt 0:00:20]} 17. Nd5 {[%emt 0:01:28]} Nxd5 {[%emt 0:02:12]} 18. cxd5 {[%emt 0:00:20]} Bb5 {[%emt 0:03:45]} 19. Be4 {[%emt 0:03:46]} Bf6 {[%emt 0:02:24]} 20. a4 {[%emt 0:06:13]} Ba6 {[%emt 0:00:11]} 21. Nf3 {[%emt 0:00:29]} Nxf3 {[%emt 0:00:40]} 22. Qxf3 {[%emt 0:00:06]} Qc7 {[%emt 0:00:40]} 23. a5 {[%emt 0:00:59]} O-O-O {[%emt 0:00:59]} 24. Qg2 {[%emt 0:05:24]} Kb8 {[%emt 0:00:27]} 25. Be3 {[%emt 0:00:23]} Qd7 {[%emt 0:00:12]} 26. Rab1 {[%emt 0:03:18]} Qb5 {[%emt 0:01:20]} 27. Qf2 {[%emt 0:00:43]} Qb4 {[%emt 0:00:38]} 28. g5 {[%emt 0:02:11]} Be5 {[%emt 0:01:06]} 29. Bd2 {[%emt 0:02:20]} Qb3 {[%emt 0:00:34]} 30. Qf3 {[%emt 0:01:18]} Qc2 {[%emt 0:01:45]} 31. Rfd1 {[%emt 0:02:55]} Qb3 {[%emt 0:01:56]} 32. Rdc1 {[%emt 0:02:42]} Rhg8 {[%emt 0:00:27]} 33. Qd1 {[%emt 0:00:30]} c4 {[%emt 0:10:21]} 34. Qxb3 {[%emt 0:04:04]} cxb3 {[%emt 0:00:01]} 35. g6 {[%emt 0:00:12]} fxg6 {[%emt 0:00:21]} 36. fxg6 {[%emt 0:00:03]} Rdf8 {[%emt 0:00:50]} 37. Bc3 {[%emt 0:00:19]} Bb5 {[%emt 0:08:51]} 38. Bxe5 {[%emt 0:00:34]} dxe5 {[%emt 0:00:02]} 39. Rf1 {[%emt 0:00:41]} Rc8 {[%emt 0:01:51]} 40. Rg1 {[%emt 0:05:46]} Rg7 {[%emt 0:01:06]} 41. Rg5 {[%emt 0:01:17]} Rc2 {[%emt 0:01:30]} 42. Rf1 {[%emt 0:00:44]} Rxb2 {[%emt 0:04:34]} 43. d6 {[%emt 0:04:34]} exd6 {[%emt 0:00:22]} 44. Rf8+ {[%emt 0:00:15]} Kc7 {[%emt 0:00:29]} 45. Rf7+ {[%emt 0:00:04]} Rxf7 {[%emt 0:00:07]} 46. gxf7 {[%emt 0:00:08]} Rf2 {[%emt 0:00:33]} 47. Rf5 {[%emt 0:00:03]} Rxf5 {[%emt 0:03:26]} 48. Bxf5 {[%emt 0:00:09]} b2 {[%emt 0:00:03]} 49. d4 {[%emt 0:00:08]} e4 {[%emt 0:00:05]} 50. f8=Q {[%emt 0:03:24]} b1=Q+ {[%emt 0:00:28]} 51. Kh2 {[%emt 0:00:09]} Qb2+ {[%emt 0:00:45]} 52. Kh1 {[%emt 0:00:08]} Qc1+ {[%emt 0:00:20]} 53. Kg2 {[%emt 0:00:02]} Qf1+ {[%emt 0:00:50]} 54. Kh2 {[%emt 0:00:03]} Bd7 {[%emt 0:00:39]} 0-1

[Event "GEO-ch 1st League 2021"]
[Site "Tbilisi"]
[Date "2021.04.02"]
[Round "5.9"]
[White "Elashvili, Giorgi"]
[Black "Volkov, Nika"]
[Result "0-1"]
[ECO "C10"]
[WhiteElo "1857"]
[BlackElo "2084"]
[Annotator "ChessBase"]
[PlyCount "142"]
[EventDate "2021.03.29"]
[EventType "swiss"]
[EventCountry "GEO"]
[SourceTitle "playchess.com"]
[Source "ChessBase"]
[SourceQuality "1"]
[TimeControl "5400+30"]

1. e4 {[%emt 0:00:00]} c5 {[%emt 0:01:31]} 2. Nf3 {[%emt 0:00:00]} e6 {[%emt 0:00:05]} 3. d4 {[%emt 0:00:38]} d5 {[%emt 0:00:01]} 4. Nc3 {[%emt 0:06:45]} Nf6 {[%emt 0:00:02]} 5. exd5 {[%emt 0:00:37]} exd5 {[%emt 0:00:02]} 6. Bb5+ {[%emt 0:00:27]} Nc6 {[%emt 0:00:02]} 7. O-O {[%emt 0:00:33]} Be7 {[%emt 0:00:02]} 8. dxc5 {[%emt 0:01:22]} Bxc5 {[%emt 0:04:57]} 9. Bg5 {[%emt 0:02:04]} Be6 {[%emt 0:01:05]} 10. Bxf6 {[%emt 0:04:52]} gxf6 {[%emt 0:00:02]} 11. Na4 {[%emt 0:12:56]} Bd6 {[%emt 0:01:14]} 12. Nd4 {[%emt 0:04:07]} Qd7 {[%emt 0:00:18]} 13. Qf3 {[%emt 0:06:32]} Ke7 {[%emt 0:04:42]} 14. Bxc6 {[%emt 0:10:28]} bxc6 {[%emt 0:01:31]} 15. Rfe1 {[%emt 0:01:14]} Be5 {[%emt 0:00:28]} 16. Qa3+ {[%emt 0:06:24]} Ke8 {[%emt 0:06:27]} 17. Nxe6 {[%emt 0:03:37]} fxe6 {[%emt 0:00:13]} 18. Nb6 {[%emt 0:02:07]} Qe7 {[%emt 0:04:01]} 19. Qxe7+ {[%emt 0:04:05]} Kxe7 {[%emt 0:00:03]} 20. Nxa8 {[%emt 0:00:12]} Rxa8 {[%emt 0:00:03]} 21. c3 {[%emt 0:00:37]} c5 {[%emt 0:00:24]} 22. Re3 {[%emt 0:06:45]} Rb8 {[%emt 0:00:32]} 23. Rb1 {[%emt 0:00:27]} Rb7 {[%emt 0:00:15]} 24. Kf1 {[%emt 0:01:27]} c4 {[%emt 0:02:12]} 25. Ke2 {[%emt 0:02:32]} d4 {[%emt 0:00:27]} 26. cxd4 {[%emt 0:02:44]} Bxd4 {[%emt 0:00:01]} 27. Rh3 {[%emt 0:08:51]} Kd6 {[%emt 0:00:02]} 28. b3 {[%emt 0:02:36]} c3 {[%emt 0:01:47]} 29. Kd3 {[%emt 0:00:41]} Kd5 {[%emt 0:00:26]} 30. Rc1 {[%emt 0:05:39]} Rc7 {[%emt 0:00:02]} 31. Rc2 {[%emt 0:01:20]} a5 {[%emt 0:00:01]} 32. f3 {[%emt 0:01:08]} e5 {[%emt 0:00:06]} 33. g4 {[%emt 0:00:33]} Ra7 {[%emt 0:04:23]} 34. Rh6 {[%emt 0:00:40]} Rf7 {[%emt 0:01:16]} 35. Rh5 {[%emt 0:00:13]} Ra7 {[%emt 0:00:23]} 36. h4 {[%emt 0:01:16]} Rf7 {[%emt 0:01:09]} 37. Rf5 {[%emt 0:00:12]} Ke6 {[%emt 0:00:01]} 38. Re2 {[%emt 0:01:36]} a4 {[%emt 0:00:27]} 39. bxa4 {[%emt 0:00:36]} Ra7 {[%emt 0:00:02]} 40. Rh5 {[%emt 0:00:22]} Rxa4 {[%emt 0:00:23]} 41. Rxh7 {[%emt 0:00:28]} c2 {[%emt 0:00:28]} 42. Rxc2 {[%emt 0:00:44]} Ra3+ {[%emt 0:00:01]} 43. Kc4 {[%emt 0:00:28]} Rxf3 {[%emt 0:00:02]} 44. a4 {[%emt 0:00:31]} Rf4 {[%emt 0:00:02]} 45. Kb5 {[%emt 0:00:31]} Rxg4 {[%emt 0:00:20]} 46. a5 {[%emt 0:00:24]} Rg1 {[%emt 0:00:02]} 47. h5 {[%emt 0:00:37]} Rb1+ {[%emt 0:00:02]} 48. Ka4 {[%emt 0:00:30]} Ra1+ {[%emt 0:00:07]} 49. Kb5 {[%emt 0:00:07]} Rb1+ {[%emt 0:00:02]} 50. Kc4 {[%emt 0:00:53]} Ra1 {[%emt 0:00:07]} 51. Kb4 {[%emt 0:00:27]} Rb1+ {[%emt 0:00:02]} 52. Ka4 {[%emt 0:00:21]} Ra1+ {[%emt 0:00:02]} 53. Kb5 {[%emt 0:00:04]} Rb1+ {[%emt 0:00:04]} 54. Ka6 {[%emt 0:00:51]} e4 {[%emt 0:00:07]} 55. h6 {[%emt 0:00:43]} f5 {[%emt 0:00:12]} 56. Rb7 {[%emt 0:00:29]} Rh1 {[%emt 0:00:02]} 57. h7 {[%emt 0:00:35]} e3 {[%emt 0:00:18]} 58. Kb5 {[%emt 0:00:30]} f4 {[%emt 0:00:10]} 59. a6 {[%emt 0:00:28]} f3 {[%emt 0:00:36]} 60. a7 {[%emt 0:00:31]} f2 {[%emt 0:00:13]} 61. Rc6+ {[%emt 0:00:19]} Kd5 {[%emt 0:00:27]} 62. Rd7+ {[%emt 0:00:17]} Ke4 {[%emt 0:00:42]} 63. Rxd4+ {[%emt 0:00:53]} Kxd4 {[%emt 0:00:08]} 64. Rc4+ {[%emt 0:00:10]} Kd3 {[%emt 0:01:30]} 65. a8=Q {[%emt 0:00:22]} f1=Q {[%emt 0:00:27]} 66. Qd5+ {[%emt 0:00:52]} Ke2 {[%emt 0:00:03]} 67. Kc5 {[%emt 0:00:39]} Qf8+ {[%emt 0:00:21]} 68. Kb5 {[%emt 0:00:27]} Qb8+ {[%emt 0:00:11]} 69. Kc5 {[%emt 0:00:31]} Qc7+ {[%emt 0:01:41]} 70. Kb4 {[%emt 0:00:32]} Qb6+ {[%emt 0:00:23]} 71. Qb5 {[%emt 0:00:29]} Rb1+ {[%emt 0:00:06]} 0-1

[Event "GEO-ch 1st League 2021"]
[Site "Tbilisi"]
[Date "2021.04.02"]
[Round "5.10"]
[White "Tsereteli, Tornike"]
[Black "Donghvani, Nia"]
[Result "1-0"]
[ECO "B22"]
[WhiteElo "1765"]
[BlackElo "1985"]
[Annotator "ChessBase"]
[PlyCount "93"]
[EventDate "2021.03.29"]
[EventType "swiss"]
[EventCountry "GEO"]
[SourceTitle "playchess.com"]
[Source "ChessBase"]
[SourceQuality "1"]
[TimeControl "5400+30"]

1. e4 {[%emt 0:00:00]} c5 {[%emt 0:00:00]} 2. c3 {[%emt 0:00:00]} d5 {[%emt 0:00:00]} 3. exd5 {[%emt 0:00:00]} Qxd5 {[%emt 0:00:00]} 4. d4 {[%emt 0:00:00]} Nc6 {[%emt 0:00:00]} 5. Nf3 {[%emt 0:00:00]} Bf5 {[%emt 0:00:00]} 6. Be3 {[%emt 0:00:11]} Nf6 {[%emt 0:00:00]} 7. Be2 {[%emt 0:00:10]} cxd4 {[%emt 0:00:02]} 8. cxd4 {[%emt 0:00:06]} Bxb1 {[%emt 0:00:11]} 9. Rxb1 {[%emt 0:00:24]} e6 {[%emt 0:00:32]} 10. a3 {[%emt 0:00:46]} Be7 {[%emt 0:04:14]} 11. O-O {[%emt 0:00:10]} O-O {[%emt 0:00:05]} 12. h3 {[%emt 0:01:04]} Rfd8 {[%emt 0:02:51]} 13. b4 {[%emt 0:00:42]} b5 {[%emt 0:06:03]} 14. Qc2 {[%emt 0:03:06]} Rac8 {[%emt 0:01:23]} 15. Qb2 {[%emt 0:00:03]} Ne4 {[%emt 0:09:13]} 16. Rbc1 {[%emt 0:01:32]} Bf6 {[%emt 0:05:50]} 17. Rfd1 {[%emt 0:00:26]} a6 {[%emt 0:02:09]} 18. Rd3 {[%emt 0:06:44]} h6 {[%emt 0:07:14]} 19. Bd1 {[%emt 0:02:10]} Nd6 {[%emt 0:05:39]} 20. Nd2 {[%emt 0:04:01]} Nc4 {[%emt 0:03:44]} 21. Nxc4 {[%emt 0:01:01]} bxc4 {[%emt 0:00:05]} 22. Bf3 {[%emt 0:00:12]} Qb5 {[%emt 0:05:45]} 23. Rd2 {[%emt 0:02:11]} Ne7 {[%emt 0:05:23]} 24. Rdc2 {[%emt 0:02:11]} Nf5 {[%emt 0:11:02]} 25. Be2 {[%emt 0:03:12]} Rxd4 {[%emt 0:19:38]} 26. Qa2 {[%emt 0:03:13]} Nxe3 {[%emt 0:01:55]} 27. fxe3 {[%emt 0:01:11]} Rdd8 {[%emt 0:02:09]} 28. Rxc4 {[%emt 0:01:30]} Rxc4 {[%emt 0:00:17]} 29. Qxc4 {[%emt 0:00:35]} Qe5 {[%emt 0:02:00]} 30. Qc5 {[%emt 0:01:52]} Qg3 {[%emt 0:02:22]} 31. Rf1 {[%emt 0:14:22]} Rd2 {[%emt 0:03:51]} 32. Rf3 {[%emt 0:00:15]} Qe1+ {[%emt 0:00:06]} 33. Bf1 {[%emt 0:00:04]} Bh4 {[%emt 0:01:10]} 34. Qc8+ {[%emt 0:01:11]} Kh7 {[%emt 0:00:07]} 35. Qc4 {[%emt 0:00:06]} Bf2+ {[%emt 0:01:08]} 36. Kh2 {[%emt 0:00:02]} Rd1 {[%emt 0:01:16]} 37. Qc2+ {[%emt 0:00:56]} f5 {[%emt 0:00:20]} 38. Qxf2 {[%emt 0:00:06]} Qc3 {[%emt 0:00:06]} 39. Bxa6 {[%emt 0:02:54]} Qxa3 {[%emt 0:00:47]} 40. Qe2 {[%emt 0:04:53]} Rb1 {[%emt 0:00:09]} 41. e4 {[%emt 0:00:27]} Qxb4 {[%emt 0:00:28]} 42. exf5 {[%emt 0:00:16]} Qd6+ {[%emt 0:01:01]} 43. g3 {[%emt 0:00:53]} Qb6 {[%emt 0:00:41]} 44. Rf2 {[%emt 0:00:37]} Qc6 {[%emt 0:00:25]} 45. Rf1 {[%emt 0:01:05]} Rb3 {[%emt 0:00:35]} 46. fxe6 {[%emt 0:01:17]} Qb6 {[%emt 0:00:28]} 47. Bd3+ {[%emt 0:00:16]} 1-0

[Event "GEO-ch 1st League 2021"]
[Site "Tbilisi"]
[Date "2021.04.02"]
[Round "5.11"]
[White "Darsadze, Nikoloz"]
[Black "Chkhaidze, Nikoloz"]
[Result "0-1"]
[ECO "A46"]
[WhiteElo "1694"]
[BlackElo "2307"]
[Annotator "ChessBase"]
[PlyCount "53"]
[EventDate "2021.03.29"]
[EventType "swiss"]
[EventCountry "GEO"]
[SourceTitle "playchess.com"]
[Source "ChessBase"]
[SourceQuality "1"]
[TimeControl "5400+30"]

1. d4 {[%emt 0:00:00]} Nf6 {[%emt 0:00:00]} 2. Nf3 {[%emt 0:00:00]} d6 {[%emt 0:00:00]} 3. Bf4 {[%emt 0:00:00]} Nbd7 {[%emt 0:00:00]} 4. e3 {[%emt 0:00:03]} Nh5 {[%emt 0:00:05]} 5. Bg3 {[%emt 0:13:34]} Nxg3 {[%emt 0:01:32]} 6. hxg3 {[%emt 0:00:06]} g6 {[%emt 0:00:16]} 7. Be2 {[%emt 0:01:13]} Bg7 {[%emt 0:00:07]} 8. c4 {[%emt 0:00:09]} c5 {[%emt 0:00:42]} 9. Nc3 {[%emt 0:00:09]} cxd4 {[%emt 0:00:27]} 10. exd4 {[%emt 0:00:46]} O-O {[%emt 0:00:10]} 11. O-O {[%emt 0:00:48]} e5 {[%emt 0:01:09]} 12. dxe5 {[%emt 0:14:22]} dxe5 {[%emt 1:31:32]} 13. Rc1 {[%emt 0:13:07]} Nc5 {[%emt 0:00:00]} 14. b4 {[%emt 0:03:13]} Ne6 {[%emt 0:00:00]} 15. Qb3 {[%emt 0:08:30]} h5 {[%emt 0:00:00]} 16. Rfd1 {[%emt 0:05:45]} Nd4 {[%emt 0:00:00]} 17. Nxd4 {[%emt 0:00:53]} exd4 {[%emt 0:00:00]} 18. Nd5 {[%emt 0:00:53]} h4 {[%emt 0:00:00]} 19. gxh4 {[%emt 0:01:07]} Qxh4 {[%emt 0:00:00]} 20. Bf3 {[%emt 0:01:53]} Bf5 {[%emt 0:00:00]} 21. Re1 {[%emt 0:04:10]} Rfe8 {[%emt 0:00:00]} 22. Nc7 {[%emt 0:03:32]} Rxe1+ {[%emt 0:00:00]} 23. Rxe1 {[%emt 0:00:02]} Rd8 {[%emt 0:00:00]} 24. Nd5 {[%emt 0:02:09]} d3 {[%emt 0:00:00]} 25. Rd1 {[%emt 0:18:53]} Bd4 {[%emt 0:00:00]} 26. Rd2 {[%emt 0:04:50]} Kg7 {[%emt 0:00:00]} 27. g3 {[%emt 0:02:10]} 0-1

[Event "GEO-ch 1st League 2021"]
[Site "Tbilisi"]
[Date "2021.04.02"]
[Round "5.12"]
[White "Esadze, Tamari"]
[Black "Safarov, Deniel"]
[Result "1-0"]
[ECO "B66"]
[WhiteElo "1897"]
[BlackElo "1720"]
[Annotator "NA"]
[PlyCount "63"]
[EventDate "2021.03.29"]
[EventType "swiss"]
[EventCountry "GEO"]
[SourceTitle "playchess.com"]
[Source "ChessBase"]
[SourceQuality "1"]
[TimeControl "5400+30"]

1. e4 {[%emt 0:00:00]} c5 {[%emt 0:00:44]} 2. Nf3 {[%emt 0:00:00]} d6 {[%emt 0:00:07]} 3. d4 {[%emt 0:00:00]} cxd4 {[%emt 0:00:02]} 4. Nxd4 {[%emt 0:00:00]} Nf6 {[%emt 0:00:08]} 5. Nc3 {[%emt 0:00:00]} Nc6 {[%emt 0:00:02]} 6. Bg5 {[%emt 0:00:00]} e6 {[%emt 0:00:02]} 7. Qd2 {[%emt 0:00:00]} a6 {[%emt 0:00:03]} 8. O-O-O {[%emt 0:00:26]} h6 {[%emt 0:00:57]} 9. Bxf6 {[%emt 0:04:20]} Qxf6 {[%emt 0:02:17]} 10. Nb3 {[%emt 0:03:32]} b5 {[%emt 0:14:50]} 11. f4 {[%emt 0:04:47]} Qd8 {[%emt 0:02:51]} 12. a3 {[%emt 0:04:56]} Bb7 {[%emt 0:02:35]} 13. Be2 {[%emt 0:03:19]} Be7 {[%emt 0:01:59]} 14. Kb1 {[%emt 0:01:48]} Rc8 {[%emt 0:05:04]} 15. f5 {[%emt 0:03:43]} O-O {[%emt 0:10:04]} 16. fxe6 {[%emt 0:01:55]} fxe6 {[%emt 0:00:02]} 17. Bg4 {[%emt 0:00:19]} Rf6 {[%emt 0:00:07]} 18. Rhf1 {[%emt 0:02:57]} Bf8 {[%emt 0:04:24]} 19. Nd5 {[%emt 0:13:13]} Rxf1 {[%emt 0:13:41]} 20. Rxf1 {[%emt 0:02:06]} exd5 {[%emt 0:02:07]} 21. Bxc8 {[%emt 0:00:10]} Qxc8 {[%emt 0:00:10]} 22. Qxd5+ {[%emt 0:00:03]} Kh8 {[%emt 0:06:54]} 23. Qf7 {[%emt 0:00:59]} Be7 {[%emt 0:00:31]} 24. Na5 {[%emt 0:04:10]} Nxa5 {[%emt 0:05:18]} 25. Qxe7 {[%emt 0:00:04]} Qc4 {[%emt 0:02:33]} 26. Rf8+ {[%emt 0:01:51]} Kh7 {[%emt 0:00:07]} 27. Qe8 {[%emt 0:00:06]} g5 {[%emt 0:03:13]} 28. Rf7+ {[%emt 0:01:53]} Kg6 {[%emt 0:00:06]} 29. Rc7+ {[%emt 0:03:29]} Kf6 {[%emt 0:00:02]} 30. Qe7+ {[%emt 0:00:17]} Kg6 {[%emt 0:00:06]} 31. Rxc4 {[%emt 0:00:09]} bxc4 {[%emt 0:00:02]} 32. Qxd6+ {[%emt 0:00:06]} 1-0

[Event "GEO-ch 1st League 2021"]
[Site "Tbilisi"]
[Date "2021.04.03"]
[Round "6.1"]
[White "Lortkipanidze, Nodar"]
[Black "Morchiashvili, Bachana"]
[Result "1-0"]
[ECO "B22"]
[WhiteElo "2416"]
[BlackElo "2313"]
[Annotator "ChessBase"]
[PlyCount "105"]
[EventDate "2021.03.29"]
[EventType "swiss"]
[EventCountry "GEO"]
[SourceTitle "playchess.com"]
[Source "ChessBase"]
[SourceQuality "1"]
[TimeControl "5400+30"]

1. e4 {[%emt 0:00:00]} c5 {[%emt 0:00:00]} 2. c3 {[%emt 0:00:00]} Nf6 {[%emt 0:00:00]} 3. e5 {[%emt 0:00:00]} Nd5 {[%emt 0:00:00]} 4. g3 {[%emt 0:00:00]} d6 5. exd6 {[%emt 0:00:00]} e6 {[%emt 0:11:20]} 6. Bg2 {[%emt 0:00:05]} Bxd6 {[%emt 0:03:50]} 7. Nf3 {[%emt 0:00:25]} Nc6 {[%emt 0:00:33]} 8. d4 {[%emt 0:00:22]} cxd4 {[%emt 0:02:04]} 9. Nxd4 {[%emt 0:00:05]} Nxd4 {[%emt 0:01:34]} 10. Qxd4 {[%emt 0:00:06]} O-O {[%emt 0:00:56]} 11. O-O {[%emt 0:00:03]} Qc7 {[%emt 0:02:55]} 12. Nd2 {[%emt 0:01:27]} Bd7 {[%emt 0:07:02]} 13. Nf3 {[%emt 0:09:37]} Rfd8 {[%emt 0:03:58]} 14. c4 {[%emt 0:06:39]} Nb4 {[%emt 0:06:53]} 15. Qc3 {[%emt 0:02:48]} Rac8 {[%emt 0:04:45]} 16. Rd1 {[%emt 0:09:44]} Be8 {[%emt 0:09:17]} 17. a3 {[%emt 0:17:50]} Nc6 {[%emt 0:12:05]} 18. Bg5 {[%emt 0:03:25]} f6 {[%emt 0:01:26]} 19. Be3 {[%emt 0:02:54]} b6 {[%emt 0:03:24]} 20. Rac1 {[%emt 0:18:06]} Bh5 {[%emt 0:03:11]} 21. b4 {[%emt 0:04:59]} Ne5 {[%emt 0:11:23]} 22. Nxe5 {[%emt 0:00:05]} Bxd1 {[%emt 0:03:26]} 23. Nc6 {[%emt 0:00:28]} Be5 {[%emt 0:03:12]} 24. Qe1 {[%emt 0:00:06]} Ba4 {[%emt 0:01:55]} 25. Nxd8 {[%emt 0:23:16]} Rxd8 {[%emt 0:00:21]} 26. Bf4 {[%emt 0:00:00]} Bxf4 {[%emt 0:00:53]} 27. Qxe6+ {[%emt 0:00:00]} Kh8 {[%emt 0:00:01]} 28. gxf4 {[%emt 0:00:00]} Qxf4 {[%emt 0:00:02]} 29. Re1 {[%emt 0:00:00]} h6 {[%emt 0:01:15]} 30. b5 {[%emt 0:00:00]} Bc2 {[%emt 0:02:28]} 31. Bd5 {[%emt 0:00:00]} Bg6 {[%emt 0:01:05]} 32. Qe3 {[%emt 0:00:00]} Qxe3 {[%emt 0:00:36]} 33. fxe3 {[%emt 0:00:00]} Rd7 {[%emt 0:00:40]} 34. a4 {[%emt 0:00:00]} Bf7 {[%emt 0:00:08]} 35. e4 {[%emt 0:00:00]} Rc7 {[%emt 0:02:00]} 36. Rc1 {[%emt 0:00:00]} Kg8 {[%emt 0:00:26]} 37. Kf2 {[%emt 0:00:00]} Kf8 {[%emt 0:00:28]} 38. Ke3 {[%emt 0:00:00]} f5 {[%emt 0:01:08]} 39. a5 {[%emt 0:00:00]} Ke7 {[%emt 0:01:05]} 40. Bxf7 {[%emt 0:00:00]} Kxf7 {[%emt 0:00:01]} 41. exf5 {[%emt 0:00:00]} Kf6 {[%emt 0:00:22]} 42. Kd4 {[%emt 0:00:00]} Rd7+ {[%emt 0:00:29]} 43. Ke4 {[%emt 0:00:00]} Rc7 {[%emt 0:00:57]} 44. c5 {[%emt 0:00:00]} bxc5 {[%emt 0:00:25]} 45. Kd5 {[%emt 0:00:00]} Rd7+ {[%emt 0:00:35]} 46. Kc6 {[%emt 0:00:00]} Rd2 {[%emt 0:00:08]} 47. Kb7 {[%emt 0:00:00]} Rd7+ {[%emt 0:00:27]} 48. Kc6 {[%emt 0:00:00]} Rd2 {[%emt 0:00:04]} 49. Rxc5 {[%emt 0:00:00]} Rxh2 {[%emt 0:00:51]} 50. Kb7 {[%emt 0:00:00]} h5 {[%emt 0:00:18]} 51. Kxa7 {[%emt 0:00:00]} h4 {[%emt 0:00:01]} 52. b6 {[%emt 0:00:00]} h3 {[%emt 0:00:38]} 53. b7 {[%emt 0:00:00]} 1-0

[Event "GEO-ch 1st League 2021"]
[Site "Tbilisi"]
[Date "2021.04.03"]
[Round "6.2"]
[White "Azaladze, Shota"]
[Black "Akhvlediani, Irakli"]
[Result "1-0"]
[ECO "E62"]
[WhiteElo "2439"]
[BlackElo "2355"]
[Annotator "ChessBase"]
[PlyCount "95"]
[EventDate "2021.03.29"]
[EventType "swiss"]
[EventCountry "GEO"]
[SourceTitle "playchess.com"]
[Source "ChessBase"]
[SourceQuality "1"]
[TimeControl "5400+30"]

1. Nf3 {[%emt 0:00:00]} g6 {[%emt 0:00:00]} 2. g3 {[%emt 0:00:00]} Bg7 {[%emt 0:00:00]} 3. d4 {[%emt 0:00:00]} Nf6 {[%emt 0:01:35]} 4. Bg2 {[%emt 0:00:07]} O-O {[%emt 0:00:07]} 5. O-O {[%emt 0:00:29]} d6 {[%emt 0:00:06]} 6. c4 {[%emt 0:01:01]} Nc6 {[%emt 0:00:07]} 7. Nc3 {[%emt 0:00:39]} e5 {[%emt 0:00:06]} 8. dxe5 dxe5 {[%emt 0:00:31]} 9. Bg5 {[%emt 0:04:12]} Be6 {[%emt 0:00:05]} 10. Nd2 {[%emt 0:02:22]} Qb8 {[%emt 0:00:56]} 11. Qa4 {[%emt 0:02:53]} Nd7 {[%emt 0:00:05]} 12. Nd5 {[%emt 0:12:23]} Nb6 {[%emt 0:01:26]} 13. Qd1 {[%emt 0:02:47]} f6 {[%emt 0:06:42]} 14. Be3 {[%emt 0:00:24]} Rd8 {[%emt 0:00:16]} 15. b4 {[%emt 0:11:49]} Kh8 {[%emt 0:05:18]} 16. Qb3 {[%emt 0:06:57]} Nd4 {[%emt 0:05:27]} 17. Bxd4 {[%emt 0:00:41]} exd4 {[%emt 0:00:08]} 18. Nf4 {[%emt 0:04:55]} Bg8 {[%emt 0:06:38]} 19. a4 {[%emt 0:00:41]} a5 {[%emt 0:17:08]} 20. b5 {[%emt 0:01:05]} f5 {[%emt 0:02:16]} 21. Qc2 {[%emt 0:03:09]} Qa7 {[%emt 0:09:39]} 22. Rac1 {[%emt 0:04:00]} c5 {[%emt 0:07:14]} 23. bxc6 {[%emt 0:01:36]} bxc6 {[%emt 0:00:14]} 24. Bxc6 {[%emt 0:00:04]} Rac8 {[%emt 0:00:02]} 25. Bb5 {[%emt 0:00:12]} Nd5 {[%emt 0:10:39]} 26. Nxd5 {[%emt 0:00:57]} Bxd5 {[%emt 0:00:03]} 27. cxd5 {[%emt 0:06:51]} Rxc2 {[%emt 0:00:10]} 28. Rxc2 {[%emt 0:00:02]} d3 {[%emt 0:14:00]} 29. Bxd3 {[%emt 0:01:35]} Qd7 {[%emt 0:00:04]} 30. Rb1 {[%emt 0:06:17]} Qxa4 {[%emt 0:04:16]} 31. Rb7 {[%emt 0:00:35]} Qa1+ {[%emt 0:00:09]} 32. Kg2 {[%emt 0:00:15]} h6 {[%emt 0:04:36]} 33. Rcc7 {[%emt 0:08:13]} a4 {[%emt 0:00:41]} 34. Nc4 {[%emt 0:02:49]} Rxd5 {[%emt 0:02:59]} 35. Rc8+ {[%emt 0:00:47]} Kh7 {[%emt 0:00:01]} 36. Ra8 {[%emt 0:00:13]} Qf6 {[%emt 0:01:58]} 37. Rb6 {[%emt 0:02:11]} Qf7 {[%emt 0:01:31]} 38. Rxa4 {[%emt 0:03:15]} Rd4 {[%emt 0:00:21]} 39. Kg1 {[%emt 0:01:38]} Qd7 {[%emt 0:00:45]} 40. Rab4 {[%emt 0:01:55]} Rxd3 {[%emt 0:00:38]} 41. exd3 {[%emt 0:00:03]} Qxd3 {[%emt 0:00:03]} 42. Ne3 {[%emt 0:00:17]} h5 {[%emt 0:00:17]} 43. Rb7 {[%emt 0:00:35]} Kh6 {[%emt 0:01:39]} 44. Rf7 {[%emt 0:03:32]} Be5 {[%emt 0:00:33]} 45. Rbb7 {[%emt 0:00:49]} Qd4 {[%emt 0:00:28]} 46. h4 {[%emt 0:00:47]} Qa1+ {[%emt 0:00:28]} 47. Kg2 {[%emt 0:00:06]} g5 {[%emt 0:00:05]} 48. Rb6+ {[%emt 0:00:06]} 1-0